lending/lending_fUSD_20260110
["ID","MTS","AMOUNT","RATE_DAILY","PERIOD"]
[401199833,1768038948816,-123.19743378,0.00012876,2]
[401199834,1768038960073,-176.80256622,0.00012876,2]
[401199835,1768038960099,-100.72136988,0.00012876,2]
[401199836,1768038964137,-409.2663801,0.00012876,2]
[401199837,1768038990687,-153.21862456,0.00012876,2]
[401199838,1768038993354,-156.22204203,0.00012876,2]
[401199839,1768039005760,-156.22204203,0.00012876,2]
[401199840,1768039237274,-256.0,0.00012867,2]
[401199841,1768039260745,-281.59436214,0.00012867,2]
[401199842,1768039320820,-948.14402246,0.00012867,2]
[401199843,1768039323632,-321.61320066,0.00012867,2]
[401199844,1768039325210,-328.97649477,0.00012867,2]
[401199845,1768039327329,-383.4677806,0.00012867,2]
[401199846,1768039329259,-1280.46144705,0.00012867,2]
[401199847,1768039329292,-275.37669051,0.00012872,2]
[401199848,1768039329320,-528.68966403,0.00012876,2]
[401199849,1768039329350,-225.21981923,0.00012876,2]
[401199850,1768039329380,-1200.0,0.00012876,2]
[401199851,1768039329411,-264.34483201,0.00012876,2]
[401199852,1768039329441,-225.21981922,0.00012876,2]
[401199853,1768039329471,-264.34483201,0.00012876,2]
[401199854,1768039329502,-195.0,0.00012876,2]
[401199855,1768039329835,-2732.3,0.00012877,2]
[401199856,1768039329865,-162.58813591,0.00013208,2]
[401199857,1768039329893,-270.0,0.00013307,2]
[401199858,1768039329922,-300.0,0.00013307,2]
[401199859,1768039329955,-337.93372818,0.00013309,2]
[401199860,1768039330063,-2394.36627182,0.00013309,2]
[401199861,1768039330092,-614.41,0.00013699,2]
[401199862,1768039330121,-1250.15745636,0.00013742,2]
[401199863,1768039330347,-1482.14254364,0.00013742,2]
[401199864,1768039330379,-2481.29491272,0.00014097,2]
[401199865,1768039330567,-2073.13508728,0.00014097,2]
[401199866,1768039330598,-250.0,0.00014154,2]
[401199867,1768039330629,-344.98670239,0.00014164,2]
[401199868,1768039330660,-195.0,0.00014164,2]
[401199869,1768039330691,-1680.0,0.00014164,2]
[401199870,1768039330896,-2732.3,0.00014174,2]
[401199871,1768039330926,-300.0,0.00014589,2]
[401199872,1768039330955,-1203.11,0.00014607,2]
[401199873,1768039331112,-1529.19,0.00014607,2]
[401199874,1768039331142,-162.58813591,0.00014837,2]
[401199875,1768039331185,-419.744,0.00014837,2]
[401199876,1768039331217,-2500.0,0.00014838,2]
[401199877,1768039331638,-1438.59857336,0.00014838,2]
[401199878,1768039331666,-2233.13102937,0.00014838,2]
[401199879,1768039331695,-686.7903162,0.00014838,2]
[401199880,1768039331726,-167.42051548,0.00014839,2]
[401199881,1768039331756,-153.52048235,0.00014839,2]
[401199882,1768039331786,-153.52048235,0.00014839,2]
[401199883,1768039331977,-379.8962245,0.00014839,2]
[401199884,1768039332005,-150.0,0.00014936,2]
[401199885,1768039332033,-284.0,0.00014937,2]
[401199886,1768039332062,-189.0,0.00014937,2]
[401199887,1768039332463,166.66,0.00014233,2]
[401199888,1768039332602,166.66,0.00014821,2]
[401199889,1768039344473,-500.0,0.00014937,2]
[401199890,1768039344501,-432.24933858,0.00014937,2]
[401199891,1768039344532,-500.0,0.00014937,2]
[401199892,1768039344563,-500.0,0.00014937,2]
[401199893,1768039344591,-456.46564164,0.00014937,2]
[401199894,1768039344621,-500.0,0.00014937,2]
[401199895,1768039344653,-500.0,0.00014937,2]
[401199896,1768039344685,-500.0,0.00014937,2]
[401199897,1768039344721,-500.0,0.00014937,2]
[401199898,1768039344753,-500.0,0.00014937,2]
[401199899,1768039344909,-500.0,0.00014937,2]
[401199900,1768039344940,-500.0,0.00014937,2]
[401199901,1768039344971,-500.0,0.00014937,2]
[401199902,1768039345002,-500.0,0.00014937,2]
[401199903,1768039345033,-500.0,0.00014937,2]
[401199904,1768039345065,-500.0,0.00014937,2]
[401199905,1768039345096,-500.0,0.00014937,2]
[401199906,1768039345128,-500.0,0.00014937,2]
[401199907,1768039345158,-500.0,0.00014937,2]
[401199908,1768039345189,-500.0,0.00014937,2]
[401199909,1768039345680,-500.0,0.00014937,2]
[401199910,1768039345711,-500.0,0.00014937,2]
[401199911,1768039345741,-500.0,0.00014937,2]
[401199912,1768039345771,-500.0,0.00014937,2]
[401199913,1768039345800,-500.0,0.00014937,2]
[401199914,1768039345829,-500.0,0.00014937,2]
[401199915,1768039345860,-500.0,0.00014937,2]
[401199916,1768039345889,-500.0,0.00014937,2]
[401199917,1768039345919,-500.0,0.00014937,2]
[401199918,1768039345950,-240.67754037,0.00014937,2]
[401199919,1768039345981,-18.65491926,0.00014937,2]
[401199920,1768039346095,-481.34508074,0.00014937,2]
[401199921,1768039346129,-500.0,0.00014937,2]
[401199922,1768039346161,-500.0,0.00014937,2]
[401199923,1768039346190,-500.0,0.00014937,2]
[401199924,1768039346222,-500.0,0.00014937,2]
[401199925,1768039346254,-500.0,0.00014937,2]
[401199926,1768039346289,-500.0,0.00014937,2]
[401199927,1768039346324,-500.0,0.00014937,2]
[401199928,1768039346360,-915.87694538,0.00014937,2]
[401199929,1768039346443,-915.87694538,0.00014937,2]
[401199930,1768039346475,-915.87694538,0.00014937,2]
[401199931,1768039346506,-915.87694538,0.00014937,2]
[401199932,1768039346537,-915.87694538,0.00014937,2]
[401199933,1768039346568,-915.87694538,0.00014937,2]
[401199934,1768039346680,-915.87694538,0.00014937,2]
[401199935,1768039346714,-915.87694538,0.00014937,2]
[401199936,1768039346748,-915.87694538,0.00014937,2]
[401199937,1768039346781,-915.87694538,0.00014937,2]
[401199938,1768039346815,-915.87694538,0.00014937,2]
[401199939,1768039346932,-915.87694538,0.00014937,2]
[401199940,1768039346967,-915.87694538,0.00014937,2]
[401199941,1768039346998,-915.87694538,0.00014937,2]
[401199942,1768039347031,-915.87694538,0.00014937,2]
[401199943,1768039347088,-915.87694538,0.00014937,2]
[401199944,1768039347193,-915.87694538,0.00014937,2]
[401199945,1768039347224,-915.87694538,0.00014937,2]
[401199946,1768039347261,-915.87694538,0.00014937,2]
[401199947,1768039347293,-915.87694538,0.00014937,2]
[401199948,1768039347325,-915.87694538,0.00014937,2]
[401199949,1768039347387,-915.87694538,0.00014937,2]
[401199950,1768039347425,-915.87694538,0.00014937,2]
[401199951,1768039347458,-915.87694538,0.00014937,2]
[401199952,1768039347490,-915.87694538,0.00014937,2]
[401199953,1768039347521,-915.87694538,0.00014937,2]
[401199954,1768039354972,-915.87694538,0.00014937,2]
[401199955,1768039355004,-915.87694538,0.00014937,2]
[401199956,1768039355034,-915.87694538,0.00014937,2]
[401199957,1768039355064,-915.87694538,0.00014937,2]
[401199958,1768039355093,-915.87694538,0.00014937,2]
[401199959,1768039355137,-915.87694538,0.00014937,2]
[401199960,1768039355166,-915.87694538,0.00014937,2]
[401199961,1768039355196,-915.87694538,0.00014937,2]
[401199962,1768039355226,-915.87694538,0.00014937,2]
[401199963,1768039355259,-915.87694538,0.00014937,2]
[401199964,1768039355313,-915.87694538,0.00014937,2]
[401199965,1768039355344,-915.87694538,0.00014937,2]
[401199966,1768039355375,-915.87694538,0.00014937,2]
[401199967,1768039355407,-915.87694538,0.00014937,2]
[401199968,1768039355439,-915.87694538,0.00014937,2]
[401199969,1768039355485,-915.87694538,0.00014937,2]
[401199970,1768039355514,-915.87694538,0.00014937,2]
[401199971,1768039355544,-890.0445187,0.00014937,2]
[401199972,1768039355574,-890.0445187,0.00014937,2]
[401199973,1768039355602,-890.0445187,0.00014937,2]
[401199974,1768039355631,-106.19058758,0.00014937,2]
[401199975,1768039355670,-783.85393112,0.00014937,2]
[401199976,1768039355700,-890.0445187,0.00014937,2]
[401199977,1768039355731,-890.0445187,0.00014937,2]
[401199978,1768039355760,-890.0445187,0.00014937,2]
[401199979,1768039355790,-890.0445187,0.00014937,2]
[401199980,1768039355821,-421.90146946,0.00014937,2]
[401199981,1768039361190,-468.14304924,0.00014937,2]
[401199982,1768039361222,-890.0445187,0.00014937,2]
[401199983,1768039361255,-890.0445187,0.00014937,2]
[401199984,1768039361288,-890.0445187,0.00014937,2]
[401199985,1768039361324,-890.0445187,0.00014937,2]
[401199986,1768039376929,1000.0,0.00014937,2]
[401199987,1768039376978,943.36775192,0.00014937,2]
[401199988,1768039377007,56.63224808,0.00014937,2]
[401199989,1768039377059,1000.0,0.00014937,2]
[401199990,1768039377424,1000.0,0.00014937,2]
[401199991,1768039377746,1000.0,0.00014937,2]
[401199992,1768039378167,1000.0,0.00014937,2]
[401199993,1768039378500,1000.0,0.00014937,2]
[401199994,1768039379362,1000.0,0.00014937,2]
[401199995,1768039379728,1000.0,0.00014937,2]
[401199996,1768039380097,1000.0,0.00014937,2]
[401199997,1768039380594,1000.0,0.00014937,2]
[401199998,1768039380921,943.37775192,0.00014937,2]
[401199999,1768039380946,56.62224808,0.00014937,2]
[401200000,1768039381236,1000.0,0.00014937,2]
[401200001,1768039381559,1000.0,0.00014937,2]
[401200002,1768039381965,1000.0,0.00014937,2]
[401200003,1768039382254,150.0,0.00014937,2]
[401200004,1768039382361,1000.0,0.00014937,2]
[401200005,1768039382787,1000.0,0.00014937,2]
[401200006,1768039383177,1000.0,0.00014937,2]
[401200007,1768039383528,1000.0,0.00014937,2]
[401200008,1768039383923,1000.0,0.00014937,2]
[401200009,1768039384245,1000.0,0.00014937,2]
[401200010,1768039384535,793.38775192,0.00014937,2]
[401200011,1768039384560,206.61224808,0.00014937,2]
[401200012,1768039384917,775.0,0.00014937,2]
[401200013,1768039389504,1269.7573,0.00014837,2]
[401200014,1768039395840,2500.0,0.00014838,2]
[401200015,1768039401109,156.76430816,0.00014838,2]
[401200016,1768039402203,636.98080461,0.00014838,2]
[401200017,1768039405875,156.76430816,0.00014838,2]
[401200018,1768039431553,4298.13103099,0.00012,2]
[401200019,1768039431575,10000.01,0.00012,2]
[401200020,1768039431598,7362.85896901,0.00012,2]
[401200021,1768039441194,300.0,0.00014937,2]
[401200022,1768039449434,1000.0,0.00014937,2]
[401200023,1768039468785,8700.01,0.00014838,2]
[401200024,1768039468808,10000.01,0.00014838,2]
[401200025,1768039468836,10000.01,0.00014838,2]
[401200026,1768039468860,4888.0133,0.00014838,2]
[401200027,1768039475527,2586.3524,0.00014838,2]
[401200028,1768039478695,253.26414966,0.00014838,2]
[401200029,1768039501189,1200.0,0.00014937,2]
[401200030,1768039507438,200.0,0.00014937,2]
[401200031,1768039526587,872.38015034,0.00014838,2]
[401200032,1768039526611,127.61984966,0.00014838,2]
[401200033,1768039546519,156.76430816,0.00014838,2]
[401200034,1768039548575,958.8739,0.00014838,2]
[401200035,1768039552334,156.76430816,0.00014838,2]
[401200036,1768039561330,300.0,0.00014937,2]
[401200037,1768039562181,150.0,0.00014937,2]
[401200038,1768039583316,500.0,0.00014937,2]
[401200039,1768039583357,500.0,0.00014937,2]
[401200040,1768039583399,500.0,0.00014937,2]
[401200041,1768039583862,500.0,0.00014937,2]
[401200042,1768039584505,500.0,0.00014937,2]
[401200043,1768039584556,500.0,0.00014937,2]
[401200044,1768039584609,500.0,0.00014937,2]
[401200045,1768039584664,500.0,0.00014937,2]
[401200046,1768039584709,500.0,0.00014937,2]
[401200047,1768039584754,500.0,0.00014937,2]
[401200048,1768039584806,500.0,0.00014937,2]
[401200049,1768039584859,500.0,0.00014937,2]
[401200050,1768039584903,500.0,0.00014937,2]
[401200051,1768039584947,500.0,0.00014937,2]
[401200052,1768039584991,197.80174352,0.00014937,2]
[401200053,1768039585034,500.0,0.00014937,2]
[401200054,1768039585076,452.1858905,0.00014937,2]
[401200055,1768039585106,47.8141095,0.00014937,2]
[401200056,1768039585148,500.0,0.00014937,2]
[401200057,1768039585198,500.0,0.00014937,2]
[401200058,1768039585251,500.0,0.00014937,2]
[401200059,1768039585298,500.0,0.00014937,2]
[401200060,1768039585348,500.0,0.00014937,2]
[401200061,1768039585399,500.0,0.00014937,2]
[401200062,1768039585455,500.0,0.00014937,2]
[401200063,1768039585499,500.0,0.00014937,2]
[401200064,1768039585568,500.0,0.00014937,2]
[401200065,1768039585616,500.0,0.00014937,2]
[401200066,1768039585675,500.0,0.00014937,2]
[401200067,1768039585722,500.0,0.00014937,2]
[401200068,1768039605041,500.0,0.00014937,2]
[401200069,1768039605081,500.0,0.00014937,2]
[401200070,1768039606035,500.0,0.00014937,2]
[401200071,1768039606100,500.0,0.00014937,2]
[401200072,1768039606143,500.0,0.00014937,2]
[401200073,1768039606188,500.0,0.00014937,2]
[401200074,1768039606234,500.0,0.00014937,2]
[401200075,1768039606274,452.1958905,0.00014937,2]
[401200076,1768039606300,47.8041095,0.00014937,2]
[401200077,1768039606338,500.0,0.00014937,2]
[401200078,1768039606379,500.0,0.00014937,2]
[401200079,1768039606421,500.0,0.00014937,2]
[401200080,1768039606464,500.0,0.00014937,2]
[401200081,1768039606510,500.0,0.00014937,2]
[401200082,1768039606551,500.0,0.00014937,2]
[401200083,1768039606596,500.0,0.00014937,2]
[401200084,1768039606652,197.80174351,0.00014937,2]
[401200085,1768039606696,500.0,0.00014937,2]
[401200086,1768039606736,500.0,0.00014937,2]
[401200087,1768039621258,300.0,0.00014937,2]
[401200088,1768039622107,302.19825649,0.00014937,2]
[401200089,1768039629903,500.0,0.00014938,2]
[401200090,1768039629983,151.0,0.00014938,2]
[401200091,1768039630567,500.0,0.00014938,2]
[401200092,1768039630662,151.0,0.00014938,2]
[401200093,1768039631240,500.0,0.00014938,2]
[401200094,1768039631391,151.0,0.00014938,2]
[401200095,1768039631918,500.0,0.00014938,2]
[401200096,1768039632987,500.0,0.00014938,2]
[401200097,1768039633208,500.0,0.00014938,2]
[401200098,1768039633897,500.0,0.00014938,2]
[401200099,1768039634031,168.84276644,0.00014838,2]
[401200100,1768039634538,500.0,0.00014938,2]
[401200101,1768039635218,30.36312406,0.00014938,2]
[401200102,1768039635241,469.63687594,0.00014938,2]
[401200103,1768039635879,500.0,0.00014938,2]
[401200104,1768039636586,500.0,0.00014938,2]
[401200105,1768039637259,500.0,0.00014938,2]
[401200106,1768039638765,500.0,0.00014938,2]
[401200107,1768039639039,500.0,0.00014938,2]
[401200108,1768039639258,527.34228679,0.00014938,2]
[401200109,1768039641934,500.0,0.00014938,2]
[401200110,1768039642627,500.0,0.00014938,2]
[401200111,1768039642830,203.86411687,0.00014938,2]
[401200112,1768039643334,500.0,0.00014938,2]
[401200113,1768039644012,500.0,0.00014938,2]
[401200114,1768039644693,500.0,0.00014938,2]
[401200115,1768039645412,500.0,0.00014938,2]
[401200116,1768039646101,500.0,0.00014938,2]
[401200117,1768039646807,500.0,0.00014938,2]
[401200118,1768039647482,205.67940434,0.00014938,2]
[401200119,1768039662149,-1000.0,0.00014838,2]
[401200120,1768039669535,-6464.60231325,0.00014938,2]
[401200121,1768039669607,-10000.01,0.00014938,2]
[401200122,1768039669725,-10000.01,0.00014938,2]
[401200123,1768039669843,-10000.01,0.00014938,2]
[401200124,1768039669946,-10000.01,0.00014938,2]
[401200125,1768039670063,-10000.01,0.00014938,2]
[401200126,1768039670177,-10000.01,0.00014938,2]
[401200127,1768039670339,-10000.01,0.00014938,2]
[401200128,1768039676441,-156.76430816,0.00014838,2]
[401200129,1768039676474,-9686.48138368,0.00014938,2]
[401200130,1768039676598,-156.76430816,0.00014838,2]
[401200131,1768039676633,-9686.48138368,0.00014938,2]
[401200132,1768039676964,-10000.01,0.00014938,2]
[401200133,1768039684685,-300.0,0.00014937,2]
[401200134,1768039688508,2419.80877259,0.00014838,2]
[401200135,1768039741257,300.0,0.00014937,2]
[401200201,1768039769655,200.0,0.00014784,2]
[401200202,1768039789298,168.84276643,0.00014838,2]
[401200203,1768039790033,6311.35846098,0.00014838,2]
[401200204,1768039790058,10000.01,0.00014838,2]
[401200205,1768039790082,10000.01,0.00014838,2]
[401200206,1768039790106,10000.01,0.00014838,2]
[401200207,1768039790131,10000.01,0.00014838,2]
[401200208,1768039790155,10000.01,0.00014838,2]
[401200209,1768039790179,10000.01,0.00014838,2]
[401200210,1768039790203,10000.01,0.00014838,2]
[401200211,1768039790227,10000.01,0.00014838,2]
[401200212,1768039811754,-1000.0,0.00014837,2]
[401200213,1768039812212,-1200.0,0.00014837,2]
[401200214,1768039812244,-300.0,0.00014837,2]
[401200215,1768039812273,-273.0,0.00014837,2]
[401200216,1768039815931,4304.92943194,0.000148,2]
[401200220,1768039831288,-590.20062203,0.00014838,2]
[401200221,1768039831300,-1088.10086567,0.00014838,2]
[401200222,1768039831312,-689.9252812,0.00014838,2]
[401200223,1768039831394,-888.14621228,0.00014838,2]
[401200224,1768039831406,-292.97700002,0.00014838,2]
[401200225,1768039831418,-4388.54030203,0.00014838,2]
[401200226,1768039831429,-501.00324206,0.00014838,2]
[401200227,1768039831441,-2339.23571831,0.00014838,2]
[401200228,1768039831487,-2031.76104923,0.00014838,2]
[401200229,1768039831502,-8823.48414865,0.00014838,2]
[401200230,1768039831521,-506.18812887,0.00014838,2]
[401200231,1768039831538,-575.75,0.00014838,2]
[401200232,1768039831550,-1849.13491146,0.00014838,2]
[401200233,1768039831563,-18389.62256567,0.00014838,2]
[401200234,1768039831579,-22008.16826103,0.00014838,2]
[401200235,1768039831592,-1347.48344483,0.00014838,2]
[401200272,1768039837883,-627.20000529,0.00014838,2]
[401200275,1768039837895,-6769.46469655,0.00014838,2]
[401200277,1768039837906,-90428.14720612,0.00014838,2]
[401200279,1768039837917,-4071.55773437,0.00014838,2]
[401200282,1768039837933,-400.0,0.00014838,2]
[401200284,1768039837944,-638.55537377,0.00014838,2]
[401200286,1768039837959,-3341.54631403,0.00014838,2]
[401200288,1768039837970,-52830.2209683,0.00014838,2]
[401200291,1768039837982,-373.38091558,0.00014838,2]
[401200430,1768039839795,-965.92,0.00014838,2]
[401200431,1768039839806,-686932.84657167,0.00014838,2]
[401200432,1768039839816,-2500.0,0.00014838,2]
[401200433,1768039839826,-200.0,0.00014938,2]
[401200434,1768039839836,-165.99817722,0.00014938,2]
[401200435,1768039839846,-219.08330172,0.00014939,2]
[401200436,1768039839855,-2732.3,0.00015039,2]
[401200437,1768039839866,-622.14,0.00015068,5]
[401200438,1768039839875,-200.0,0.00015086,2]
[401200439,1768039839885,-200.0,0.00015087,2]
[401200440,1768039839895,-319.51,0.00015154,2]
[401200441,1768039839905,-500.0,0.00015173,2]
[401200442,1768039839914,-2419.80877251,0.00015178,2]
[401200443,1768039839923,-200.0,0.00015237,2]
[401200444,1768039839933,-200.0,0.00015238,2]
[401200445,1768039839943,-3603.25,0.00015272,2]
[401200446,1768039839953,-1000.0,0.00015328,2]
[401200447,1768039839963,-200.0,0.0001539,2]
[401200449,1768039839972,-200.0,0.00015391,2]
[401200450,1768039839981,-166.66,0.00015408,2]
[401200452,1768039839990,-500.0,0.00015452,2]
[401200453,1768039839999,-2732.3,0.00015472,2]
[401200454,1768039840008,-2419.80877251,0.00015518,2]
[401200455,1768039840017,-200.0,0.00015544,2]
[401200456,1768039840026,-200.0,0.00015545,2]
[401200457,1768039840035,-290.47234924,0.0001575,2]
[401200458,1768039840044,-151.0,0.0001575,2]
[401200459,1768039840054,-8260.13072239,0.0001575,2]
[401200460,1768039840063,-250.0,0.0001575,2]
[401200461,1768039840072,-250.0,0.0001575,2]
[401200462,1768039840081,-496.47127164,0.0001575,2]
[401200463,1768039840091,-250.0,0.0001575,2]
[401200464,1768039840100,-268.55828979,0.0001575,2]
[401200465,1768039840109,-250.0,0.0001575,2]
[401200466,1768039840120,-267.33747462,0.0001575,2]
[401200467,1768039840131,-1000.0,0.0001575,2]
[401200468,1768039840142,-1000.0,0.0001575,2]
[401200469,1768039840151,-500.0,0.0001575,2]
[401200470,1768039840161,-1000.0,0.0001575,2]
[401200471,1768039840170,-181.08010149,0.0001575,2]
[401200472,1768039840179,-500.0,0.0001575,2]
[401200473,1768039840190,-1000.0,0.0001575,2]
[401200474,1768039840200,-500.0,0.0001575,2]
[401200475,1768039840211,-1000.0,0.0001575,2]
[401200476,1768039840220,-1000.0,0.0001575,2]
[401200477,1768039840230,-500.0,0.0001575,2]
[401200478,1768039840240,-151.0,0.0001575,2]
[401200479,1768039840249,-1000.0,0.0001575,2]
[401200480,1768039840258,-500.0,0.0001575,2]
[401200481,1768039840267,-151.0,0.0001575,2]
[401200482,1768039840277,-1000.0,0.0001575,2]
[401200483,1768039840287,-500.0,0.0001575,2]
[401200484,1768039840296,-157.48868544,0.0001575,2]
[401200485,1768039840306,-181.08010149,0.0001575,2]
[401200486,1768039840315,-1000.0,0.0001575,2]
[401200487,1768039840325,-500.0,0.0001575,2]
[401200488,1768039840335,-500.0,0.0001575,2]
[401200489,1768039840344,-250.0,0.0001575,2]
[401200490,1768039840353,-151.0,0.0001575,2]
[401200491,1768039840363,-1000.0,0.0001575,2]
[401200492,1768039840372,-500.0,0.0001575,2]
[401200493,1768039840381,-500.0,0.0001575,2]
[401200494,1768039840391,-250.0,0.0001575,2]
[401200495,1768039840401,-1000.0,0.0001575,2]
[401200496,1768039840411,-724.98153853,0.0001575,2]
[401200497,1768039840421,-500.0,0.0001575,2]
[401200498,1768039840431,-265.93998841,0.0001575,2]
[401200499,1768039840440,-500.0,0.0001575,2]
[401200500,1768039840449,-1000.0,0.0001575,2]
[401200501,1768039840458,-500.0,0.0001575,2]
[401200502,1768039840467,-500.0,0.0001575,2]
[401200503,1768039840477,-1000.0,0.0001575,2]
[401200504,1768039840486,-500.0,0.0001575,2]
[401200505,1768039840495,-500.0,0.0001575,2]
[401200506,1768039840504,-1000.0,0.0001575,2]
[401200507,1768039840514,-500.0,0.0001575,2]
[401200508,1768039840523,-500.0,0.0001575,2]
[401200509,1768039840533,-1000.0,0.0001575,2]
[401200510,1768039840546,-500.0,0.0001575,2]
[401200511,1768039840555,-500.0,0.0001575,2]
[401200512,1768039840564,-500.0,0.0001575,2]
[401200513,1768039840574,-500.0,0.0001575,2]
[401200514,1768039840586,-500.0,0.0001575,2]
[401200515,1768039840595,-500.0,0.0001575,2]
[401200516,1768039840604,-500.0,0.0001575,2]
[401200517,1768039840614,-500.0,0.0001575,2]
[401200518,1768039840623,-250.0,0.0001575,2]
[401200519,1768039840633,-500.0,0.0001575,2]
[401200520,1768039840643,-250.0,0.0001575,2]
[401200521,1768039840652,-500.0,0.0001575,2]
[401200522,1768039840663,-623.58710448,0.0001575,2]
[401200523,1768039840673,-262.27490419,0.0001575,2]
[401200524,1768039840683,-250.0,0.0001575,2]
[401200525,1768039840693,-500.0,0.0001575,2]
[401200526,1768039840703,-250.0,0.0001575,2]
[401200527,1768039840713,-500.0,0.0001575,2]
[401200528,1768039840723,-250.0,0.0001575,2]
[401200529,1768039840733,-250.0,0.0001575,2]
[401200530,1768039840742,-250.0,0.0001575,2]
[401200531,1768039840752,-250.0,0.0001575,2]
[401200532,1768039840761,-250.0,0.0001575,2]
[401200533,1768039840771,-250.0,0.0001575,2]
[401200534,1768039840781,-187.78006525,0.0001575,2]
[401200535,1768039840790,-250.0,0.0001575,2]
[401200536,1768039840800,-250.0,0.0001575,2]
[401200537,1768039840810,-250.0,0.0001575,2]
[401200538,1768039840819,-250.0,0.0001575,2]
[401200539,1768039840829,-250.0,0.0001575,2]
[401200540,1768039840839,-262.0209475,0.0001575,2]
[401200541,1768039840848,-250.0,0.0001575,2]
[401200542,1768039840858,-250.0,0.0001575,2]
[401200543,1768039840867,-998.0,0.0001575,2]
[401200544,1768039840876,-322.6107,0.0001575,2]
[401200545,1768039840886,-2000.0,0.0001575,2]
[401200546,1768039840896,-250.0,0.0001575,2]
[401200547,1768039840905,-2000.0,0.0001575,2]
[401200548,1768039840914,-250.0,0.0001575,2]
[401200549,1768039840923,-2000.0,0.0001575,2]
[401200550,1768039840933,-2000.0,0.0001575,2]
[401200551,1768039840943,-2000.0,0.0001575,2]
[401200552,1768039840952,-2000.0,0.0001575,2]
[401200553,1768039840961,-2000.0,0.0001575,2]
[401200554,1768039840971,-2000.0,0.0001575,2]
[401200555,1768039840982,-2000.0,0.0001575,2]
[401200556,1768039840991,-2000.0,0.0001575,2]
[401200557,1768039841001,-2000.0,0.0001575,2]
[401200558,1768039841010,-525.94323817,0.0001575,2]
[401200559,1768039841019,-8565.75555911,0.00015805,2]
[401200560,1768039841028,-151.0,0.00015835,2]
[401200561,1768039841038,-151.0,0.00015835,2]
[401200562,1768039841049,-151.0,0.00015835,2]
[401200563,1768039841058,-151.0,0.00015835,2]
[401200564,1768039841068,-2419.80877251,0.00015859,2]
[401200565,1768039841078,-8882.6885148,0.0001586,2]
[401200566,1768039841088,-2181.31959828,0.000159,2]
[401200567,1768039841098,-2732.3,0.00015904,2]
[401200568,1768039841108,-805.55508344,0.00015915,2]
[401200569,1768039841117,-1000.0,0.00015957,2]
[401200570,1768039841127,-429.31,0.00015961,2]
[401200571,1768039841136,-1000.0,0.00015961,2]
[401200572,1768039841145,-1000.0,0.00015961,2]
[401200573,1768039841154,-1000.0,0.00015961,2]
[401200574,1768039841164,-1000.0,0.00015961,2]
[401200575,1768039841174,-1000.0,0.00015961,2]
[401200576,1768039841183,-1000.0,0.00015961,2]
[401200577,1768039841192,-1000.0,0.00015961,2]
[401200578,1768039841202,-1000.0,0.00015961,2]
[401200579,1768039841211,-1000.0,0.00015961,2]
[401200580,1768039841219,-1000.0,0.00015961,2]
[401200581,1768039841229,-1000.0,0.00015961,2]
[401200582,1768039841238,-1000.0,0.00015961,2]
[401200583,1768039841247,-1000.0,0.00015961,2]
[401200584,1768039841257,-1000.0,0.00015961,2]
[401200585,1768039841266,-1000.0,0.00015961,2]
[401200586,1768039841276,-1000.0,0.00015961,2]
[401200587,1768039841286,-1000.0,0.00015961,2]